Cogmind - Beta 17 @@@ ROGUE MODE // 2026.07.26 @ 23:40:10 Player: aperiodic Result: Destroyed by Autobeam Turret with Autobeam Performance ------------- Evolutions (0) 0 Regions Visited (2) 400 Robots Destroyed (23) 115 Value Destroyed (531) 531 Prototype IDs (0) 0 Alien Tech Used (0) 0 Bonus (0) 0 TOTAL SCORE: 1046 Bonus ------- None Cogmind --------- Core Integrity 0/250 Matter 300/300 Energy 199/200 System Corruption 0% Temperature Cool (12) Movement Rolling (110) Ox2 Location -10/Subcaves Parts ------- > --- POWER (1) -------- Subdweller Power Source > --- PROPULSION (2) --- Light Treads Wheel > --- UTILITY (2) ------ Improved Heat Sink Disposable Heat Sink > --- WEAPON (2) ------- Subdweller Beam Cannon Subdweller Beam Cannon > --- INVENTORY (5) ---- Subdweller Laser Light Assault Rifle Subdweller Machine Gun Mining Laser Peak State ------------ > --- POWER ------------ Light Ion Engine > --- PROPULSION ------- Wheel Compact Wheel > --- UTILITY ---------- Improved Heat Sink Huge Storage Unit > --- WEAPON ----------- Subdweller Laser Subdweller Machine Gun > --- INVENTORY -------- Ion Engine Light Treads Light Treads Light Treads Wheel Flight Unit Heat Sink Small Storage Unit Medium Storage Unit High-capacity Matter Pod Seismic Detector Authchip [R/Combat] Authchip [R/Combat] Authchip [Propulsion] Authchip [Propulsion] Authchip [Device] Authchip [Weapon] Light Assault Rifle Light Assault Rifle Light Assault Rifle Light Assault Rifle Mining Laser [Rating: 15] Favorites ----------- Power Ion Engine Engine Ion Engine Propulsion Wheel Treads Light Treads Wheel Wheel Utility Improved Heat Sink Device Improved Heat Sink Storage Huge Storage Unit Weapon Subdweller Beam Cannon Energy Gun Subdweller Laser Energy Cannon Subdweller Beam Cannon Ballistic Gun Light Assault Rifle Special Weapon Mining Laser Build | -11 -10 -10 ------- Run | Yrd Mat Sub Slots Evolved . | . . . Power . | . . . Propulsion . | . . . Utility . | . . . Weapon . | . . . Parts Attached 26 | 8 9 9 Power 4 | 1 1 2 Engine 4 | 1 1 2 Core . | . . . Reactor . | . . . Propulsion 5 | 3 2 . Treads 2 | . 2 . Leg . | . . . Wheel 3 | 3 . . Hover . | . . . Flight . | . . . Utility 7 | 2 4 1 Device 4 | 1 2 1 Storage 3 | 1 2 . Processor . | . . . Hackware . | . . . Protection . | . . . Artifact . | . . . Weapon 10 | 2 2 6 Energy Gun 2 | . . 2 Energy Cannon 3 | . . 3 Ballistic Gun 4 | 2 1 1 Ballistic Cannon . | . . . Launcher . | . . . Special Weapon 1 | . 1 . Impact Weapon . | . . . Slashing Weapon . | . . . Piercing Weapon . | . . . Special Melee Weapon . | . . . Unidentified Prototypes . | . . . Parts Lost 7 | . . 7 Power 2 | . . 2 Propulsion 2 | . . 2 Utility 1 | . . 1 Weapon 2 | . . 2 Highest Loss Streak 3 | . . 3 To Critical Strikes . | . . . Average Backups 8 | 3 13 6 Power . | . 1 . Propulsion 1 | 2 3 1 Utility 2 | . 7 1 Weapon 3 | . 2 3 Tool/Special . | . . . Unused Backups 11 | . . 11 Power . | . . . Propulsion 2 | . . 2 Utility 7 | . . 7 Weapon 2 | . . 2 Tool/Special . | . . . Average Slot Usage (%) 94 | . 100 93 Engine 13 | . 14 13 Treads 4 | . 11 2 Wheel 23 | . 16 25 Device 23 | . 14 26 Storage 4 | . 14 1 Energy Gun 3 | . . 4 Energy Cannon 11 | . . 14 Ballistic Gun 8 | . 27 3 Peak Build Rating 15 | 7 13 15 Average Rating 10 | 5 9 11 On Entrance 6 | . 7 12 Avg Prop Armor Cover (%) 15 | . . 15 Naked Turns . | . . . Heaviest Build 92 | 14 89 92 Greatest Support 40 | 26 40 26 Greatest Overweight (x) 3 | . 3 3 Average Overweight (x) . | . 1 . Largest Inventory Capacity 25 | 8 25 25 Average Capacity 9 | 7 18 7 Most Carried 22 | 6 22 22 Average Carried 8 | 4 13 6 Final Capacity 25 | 8 25 5 Final Carried 21 | 6 21 4 Class Distribution -------------------- 58% | Mutant 41% | Scavenger-Mutant Dominant Class ---------------- Mutant | -10/Materials Scavenger-Mutant | -10/Subcaves Resources | -11 -10 -10 ----------- Run | Yrd Mat Sub Matter Collected 826 | 260 322 244 Remotely . | . . . Salvage Created 744 | 119 322 303 Parts 67 | 11 25 31 Haulers Intercepted 1 | . 1 . Recyclers Shooed 3 | 2 1 . Parts Field Recycled . | . . . Retrieved Matter . | . . . Parts Self-Destructed 15 | . . 15 Prevented . | . . . Parts Restored . | . . . Kills | -11 -10 -10 ------- Run | Yrd Mat Sub Combat Hostiles Destroyed 16 | . 7 9 Guns 13 | . 7 6 Cannons 2 | . . 2 Classes Destroyed 6 | 2 3 1 Tunneler 4 | 4 . . Hauler 1 | . 1 . Recycler 2 | 1 1 . Swarmer 5 | . 3 2 Grunt 4 | . 4 . Subdweller 7 | . . 7 Best Kill Streak 5 | 5 3 2 Combat Bots Only 3 | . 3 2 Max Kills in Single Turn 1 | 1 1 1 Gunslinging . | . . . Exploded . | . . . Melee . | . . . Uniques/NPCs Destroyed . | . . . Combat | -11 -10 -10 -------- Run | Yrd Mat Sub Hostile Shots Fired 78 | . 36 42 Missed 17 | . 9 8 Hits 61 | . 27 34 Projectile 61 | . 27 34 Critical Strikes 1 | . . 1 Damage Taken 1007 | . 315 692 Core 252 | . 65 187 Absorbed by Shields . | . . . Core Remaining (%) 100 | 100 . . Volleys Fired 99 | 14 32 53 Largest 2 | 2 2 2 Hottest 160 | 40 100 160 Shots Fired 159 | 28 63 68 Gun 139 | 28 62 49 Cannon 16 | . . 16 Launcher . | . . . Special 4 | . 1 3 Kinetic 117 | 28 62 27 Thermal 42 | . 1 41 Explosive . | . . . Electromagnetic . | . . . Robot Hit Streak 16 | 8 9 16 Robot Miss Streak 2 | 2 2 1 Penetration Max . | . . . Secondary Targets 1 | . 1 . Max Gunslinging Chain 1 | . 1 . Shots Hit Robots 103 | 19 43 41 Core Hits 37 | 7 16 14 Critical Kills 2 | . . 2 Critical Parts Destroyed . | . . . Critical Strikes 2 | . . 2 Meltdown 1 | . . 1 Destroy 1 | . . 1 Melee Attacks . | . . . Impact . | . . . Slashing . | . . . Piercing . | . . . Sneak Attacks . | . . . Combat Hostiles . | . . . Follow-up Attacks . | . . . Damage Inflicted 1352 | 200 477 675 Guns 1153 | 200 477 476 Cannons 199 | . . 199 Explosions . | . . . Melee . | . . . Ramming . | . . . Kinetic 929 | 200 477 252 Thermal 423 | . . 423 Explosive . | . . . Electromagnetic . | . . . Impact . | . . . Slashing . | . . . Piercing . | . . . Highest Corruption . | . . . Average Corruption . | . . . Corruption Purged . | . . . Corruption Blocked . | . . . Overload Shots . | . . . Overflow Damage . | . . . Projectiles . | . . . Explosions . | . . . Melee . | . . . Knockbacks . | . . . Impact . | . . . Kinetic . | . . . Secondary . | . . . Self-Inflicted Damage . | . . . Shots . | . . . Rammed . | . . . Targets Rammed . | . . . Kicked . | . . . Crushed . | . . . Highest Temperature 20 | . 20 . Average Temperature 12 | . 12 . Received Heat Transfer 294 | . 111 183 Siege Activations . | . . . Martial Activations . | . . . Shielding Activations . | . . . Robots Disrupted . | . . . Combat Hostiles . | . . . Robots Corrupted . | . . . Combat Hostiles . | . . . Parts Fried . | . . . Impact Corruptions . | . . . Robots Melted 1 | . . 1 Combat Hostiles 1 | . . 1 Parts Melted 3 | . . 3 Heat Transferred 534 | . . 534 Parts Sabotaged . | . . . Parts Stolen . | . . . Parts Stripped . | . . . Power Chain Reactions . | . . . Alert | -11 -10 -10 ------- Run | Yrd Mat Sub Maximum Alert Level . | . . . Low Security (%) 100 | 100 100 . Level 1 . | . . . Level 2 . | . . . Level 3 . | . . . Level 4 . | . . . Level 5 . | . . . High Security . | . . . Max Security . | . . . Peak Influence 62 | 10 62 . Initial . | . . . Average 12 | 2 14 . Influence Increases 267 | 25 187 55 Destroy 0b10 Robot/C 180 | . 140 40 Destroy 0b10 Robot/NC 35 | 25 10 . Destroy Leader 22 | . 22 . Disable Machine 15 | . 15 . Lose Combat Pursuer 15 | . . 15 Influence Decreases 267 | 25 173 69 Entered New Map 7 | . . 7 Time Decay 253 | 25 173 55 Lost Part 7 | . . 7 Squads Dispatched 1 | . 1 . Investigation . | . . . Extermination . | . . . Reinforcement 1 | . 1 . Assault . | . . . Garrison . | . . . Intercept . | . . . Searches Triggered . | . . . Construction Impeded . | . . . Haulers Reinforced . | . . . Active Scanning Responses . | . . . Cargo Convoy Interrupts . | . . . Stealth | -11 -10 -10 --------- Run | Yrd Mat Sub Distress Signals 3 | . 3 . Communications Jammed . | . . . Distress Signals . | . . . Times Spotted 27 | . 12 15 Peak Tracking Total 6 | . 6 4 Tactical Retreats 1 | . . 1 Traps | -11 -10 -10 ------- Run | Yrd Mat Sub Traps Triggered 1 | . 1 . Indirectly . | . . . Trap Hack Attempts . | . . . Triggered . | . . . Disarmed . | . . . Reprogrammed . | . . . Reused . | . . . Traps Extracted . | . . . Installed . | . . . Triggered . | . . . Machines | -11 -10 -10 ---------- Run | Yrd Mat Sub Machines Disabled 1 | . 1 . Max in Single Turn 1 | . 1 . Machines Repaired . | . . . Machines Dismantled . | . . . Machines Sabotaged . | . . . Overloaded Fab Kills . | . . . Hacking | -11 -10 -10 --------- Run | Yrd Mat Sub Machines Accessed 1 | . 1 . Terminals 1 | . 1 . Fabricators . | . . . Repair Stations . | . . . Recycling Units . | . . . Scanalyzers . | . . . Garrison Access . | . . . Total Hacks 4 | . 4 . Successful . | . . . Failed 4 | . 4 . Catastrophic . | . . . Database Lockouts . | . . . Manual 4 | . 4 . Terminals 4 | . 4 . Fabricators . | . . . Repair Stations . | . . . Recycling Units . | . . . Scanalyzers . | . . . Garrison Access . | . . . Terminal Hacks . | . . . Fabricator Hacks . | . . . Repair Station Hacks . | . . . Recycling Unit Hacks . | . . . Scanalyzer . | . . . Garrison Access Hacks . | . . . Unauthorized Hacks . | . . . Terminals . | . . . Fabricators . | . . . Repair Stations . | . . . Recycling Units . | . . . Scanalyzers . | . . . Garrison Access . | . . . Data Cores Recovered . | . . . Used . | . . . Hacking Detections 1 | . 1 . Full Trace Events . | . . . Feedback Events . | . . . Feedback Blocked . | . . . Robot Schematics Acquired . | . . . Robots Built . | . . . Authchips . | . . . Time . | . . . Total Robot Build Rating . | . . . Part Schematics Acquired . | . . . Parts Built . | . . . Authchips . | . . . Time . | . . . Total Part Build Rating . | . . . Part Studies Acquired . | . . . Parts Repaired . | . . . Time . | . . . Parts Recycled . | . . . Recycled Matter . | . . . Retrieved Matter . | . . . Retrieved Components . | . . . Parts Scanalyzed . | . . . Part Schematics Acquired . | . . . Parts Damaged . | . . . Bothacking | -11 -10 -10 ------------ Run | Yrd Mat Sub Used RIF Installer . | . . . Robots Hacked . | . . . Non-combat . | . . . Combat . | . . . Robot Hacks Applied . | . . . Relay Couplers Released . | . . . Fabnet Peak Effective % . | . . . Robots Rewired . | . . . Allies Hacked . | . . . Hacks Repelled . | . . . Allies | -11 -10 -10 -------- Run | Yrd Mat Sub Total Allies . | . . . Largest Group . | . . . Highest-Rated Group . | . . . Highest-Rated Ally . | . . . Total Orders . | . . . Ally Attacks . | . . . Total Damage . | . . . Kills . | . . . Allies Corrupted . | . . . Allies Melted . | . . . Intel | -11 -10 -10 ------- Run | Yrd Mat Sub Active Infowar (turns) 275 | 16 128 131 Seismic 275 | 16 128 131 Robot Analysis Total . | . . . Derelict Logs Recovered 1 | . . 1 Drone Launches . | . . . Drone Recoveries . | . . . Exploration | -11 -10 -10 ------------- Run | Yrd Mat Sub Turns Passed 2746 | 116 601 2029 Spaces Moved 1551 | 68 309 1174 Core 1 | 1 . . Treads 39 | . 39 . Legs . | . . . Wheels 1511 | 67 270 1174 Hover . | . . . Flight . | . . . Fastest Speed 50 | 50 80 90 Average Speed 103 | 84 126 98 Slowest Speed 320 | 100 320 135 Overloaded Moves . | . . . Propulsion Burnouts . | . . . Robots Hopped . | . . . Potential Cave-ins . | . . . Cave-ins Triggered . | . . . Exploration Rate (%) 36 | 5 59 46 Regions Visited 2 Branch Regions 1 Pre-discovered Areas . | . . . Known Exits Taken . | . . . Unknown Exits Taken 2 | 1 1 . Scrap Searched 2 | . . 2 Spaces Dug . | . . . Terrain Destroyed 2 | . . 2 Melee . | . . . Projectile 2 | . . 2 AOE . | . . . Terrain Rammed . | . . . Walls Destroyed . | . . . Machines Disabled . | . . . Actions | -11 -10 -10 --------- Run | Yrd Mat Sub Total 2523 | 96 453 1974 Wait 805 | 2 83 720 Move 1549 | 67 308 1174 Hop . | . . . Pick Up 22 | 5 14 3 Fast Attach 13 | 7 . 6 Attach 4 | . . 4 Detach 2 | . . 2 Swap 25 | 1 15 9 Drop 4 | . 1 3 Fire 99 | 14 32 53 Melee . | . . . Ram . | . . . Kick . | . . . Crush . | . . . Escape Stasis . | . . . Rewire . | . . . Trap . | . . . Miscellaneous . | . . . Route ------- -11/Scrapyard -10/Materials (discovered 4 exits: [*Mat x2] / [*Min] / [*Sub]) -10/Subcaves (discovered 1 exit: [*Rec]) History --------- Turn | Location | Event 12 | -11/Scrapyard | Discovered new exit (range 15) 117 | -11/Scrapyard | Entered Materials 223 | -10/Materials | Discovered new exit (range 16) 303 | -10/Materials | Build established: Mutant 363 | -10/Materials | Discovered new exit (range 16) 667 | -10/Materials | Discovered new exit (range 16) 714 | -10/Materials | Discovered new exit (range 4) 718 | -10/Materials | Entered Subcaves 719 | -10/Subcaves | Approached by a straggling Scientist 725 | -10/Subcaves | A swath of the cavern ceiling suddenly collapsed 1049 | -10/Subcaves | Disturbed a concealed Subdweller 1057 | -10/Subcaves | Core integrity fell below 50% 1089 | -10/Subcaves | Lost 3 parts (1p1n1u) 1195 | -10/Subcaves | Shifting Twisted Machinery released Sub. Machine Gun 1198 | -10/Subcaves | Shifting Twisted Machinery released Sub. Machine Gun 1335 | -10/Subcaves | Core integrity fell below 20% 1398 | -10/Subcaves | Learned location of 1 exit from Materials 2274 | -10/Subcaves | Shifting Twisted Machinery released Sub. Power Source 2296 | -10/Subcaves | Shifting Twisted Machinery released Spk. Treads 2408 | -10/Subcaves | Build established: Scavenger-Mutant 2747 | -10/Subcaves | Discovered new exit (range 11) 2747 | -10/Subcaves | Destroyed by Autobeam Turret with Autobeam Last Messages --------------- 02212_ 8G-99P(R) destroyed. 02218_ Acquired 10 matter. 02222_ Acquired Sub. Power Source. 02224_ Acquired 10 matter. 02253_ Dropped Broken Sub. Beam Cannon. 02254_ Acquired Sub. Beam Cannon. 02256_ Acquired 10 matter. Sub. Power Source falls loose from the Twisted Machinery. Spk. Treads falls loose from the Twisted Machinery. 02505_ 6M-K8D(R) destroyed. 02506_ Com. Wheel destroyed. 02507_ 46-UUG(R) suffers critical hit (Meltdown). 02507_ Disposable Heat Sink melted. 02518_ Acquired 10 matter. 02625_ Subatomizers dissect the Sub. Optics. 02747_ EXIT=FOUND Map ----- +----------------------------------------------------+ | ?????????????????????????????????????????????????? | | ?????????????????????????????????????????????????? | | ?????????????????????????????????????????????????? | | ?????????????????????????????????????????????????? | | ?????????????????????????????????????????????????? | | ?????????????????????????????????????????????????? | | ?????????????????????????????????????????????????? | | ?????????????????????????????????????????????????? | | ?????????????????????????????????????????????????? | | ??????????????????????????????????????????????#### | | ??????????????????????????????????????????????# & | | ??????????????????????????????????????????????#&# | | ??????????????????????????????????????????????#&## | | ??????????????????????????????????????????????#[ # | | ??????????????????????????????????????????????#[ # | | ??????????????????????????????????????????????#### | | ?????????????????????????????????????????????????? | | ?????????????????????????????????????????????????? | | ???????????????????????????????#?????????????????? | | ???????????????####?????????"" #?????????????????? | | ???????????????#""" ????????"" #?????????????????? | | ???????????????#" ??????#"" #?????????????????? | | ???????????????#" ######[""#??????????###????? | | ??????????????##""t """ "##???????### #????? | | ??????????????#< % [;#??????##" ####?? | | ???????????????#" t @ ##???####" ### | | ???????????????#" ####% ##### ##" ## | | ???????????????#????????# % ;##" "## | | ????????????????????????# """"###""""" " | | ????????????????????????### *"#?##""" " ## | | ??????????????????????????## "#??# " ##### | | ???????????????????????????## "##?# "###?## | | ????????????????????????##### #?# ""##?## # # | | ????????????????????????# """ "#?# "" #??###### | | ????????????????????????# """" ### "" ##???????? | | ????????????????????????# " "" " #????????? | | ????????????????????????# " """"" ##????????? | | ????????????????????????## ###"" ##????????? | | ?????????????????????????##??###### #????????? | | ??????????????????????????????????## #????????? | | ???????????????????????????????????## #????????? | | ????????????????????????????????????# ##????????? | | ????????????????????????????????????## #?????????? | | ?????????????????????????????????????###?????????? | | ?????????????????????????????????????????????????? | | ?????????????????????????????????????????????????? | | ?????????????????????????????????????????????????? | | ?????????????????????????????????????????????????? | | ???????????????????????????????????????###???????? | | ???????????????????????????????????????# ##???### | +----------------------------------------------------+ Best States ------------- Heat Dissipation 39 Coolant Potential 50 Energy Generation 10 Energy Capacity 250 Matter Stores 300 Matter Capacity 300 Sight Range 16 Terrain Scan Density 10 Evasion (%) 44 Recoil Reduction 2 Authchip Count 6 Item Schematics ----------------- None Robot Schematics ------------------ None Fabricated ------------ Nothing Repaired ---------- Nothing Studied --------- None Alien Tech Used ----------------- None Achievements -------------- None Challenges ------------ None Game ------ Seed ShockboltZhirovRigger Manual? 0 Play Time 00:21:02 Cumulative 779.4 hours Start 2026.07.26 @ 23:16:37 End 2026.07.26 @ 23:40:10 Sessions 1 Manual Loads 0 Difficulty Rogue Special Mode None Game No. 276 Rogue 272 Adventurer 4 Explorer 0 Win Type - Total 21 Types 9/2/6/0/0/0/2/2/0/0 Lore% 88 Gallery% 76 Achievement% 61 Wizard Run 0 Options --------- Layout 1 ASCII 0 Keyboard 0 Movement Arrows Keybinds 0 Fullscreen 1 Font 40/SmallcapsGlow Map View 50x40 Zoom Use 0% Tactical HUD 1 Map Filters NONE Filters NONE Steam 1 RUN: 19971286-c82a-49ae-ab14-8648cd10422e